Workbook

Sheet Sheriffs and Deputies
A2: Measurement Date: 6/30/2015
A3: Membership Goup: Sheriffs and Deputies
H4: DEFERRED OUTFLOWS OF RESOURCES | M4: DEFERRED INFLOWS OF RESOURCES
H5: (Excluding Employer Specific Amounts)* | M5: (Excluding Employer Specific Amounts) *
A6: Employer ID # | B6: Employer Name | C6: 2019 Actual Employer Contributions | D6: Employer Allocation Percentage ** | E6: Net Pension Liability (NPL)/ (Asset) | F6: Change in NPL due to 1% Decrease in the Actuarial Assumed Investment Return (6.00 %) | G6: Change in NPL due to 1% Increase in the Actuarial Assumed Investment Return (8.00%) | H6: Differences Between Expected and Actual Experience | I6: Changes of Assumptions | J6: Difference Between Projected and Actual Investment Earnings on Pension Plan Investments | K6: Total Deferred Outflows of Resources | M6: Differences Between Expected and Actual Experience | N6: Changes of Assumptions | O6: Difference Between Projected and Actual Investment Earnings on Pension Plan Investments | P6: Total Deferred Inflows of Resources | Q6: Total Proportionate Share of Allocable Plan Pension Expense
A7: EMPLOYER ID # | B7: EMPLOYER_NAME | C7: 11471176 | D7: 1 | E7: -8426532 | F7: 83049130 | G7: -85095388 | H7: 1458030 | I7: 11813322 | J7: 6091091 | K7: =SUM(H7:J7) -> 19362443 | M7: 2934235 | N7: 16950605 | O7: 21217859 | P7: =SUM(M7:O7) -> 41102699 | Q7: 9100229
A8: 01201 | B8: ADAIR COUNTY | C8: 36876.65 | D8: =+C8/$C$108 -> 0.003214722629 | E8: =ROUND(D8*$E$7,0) -> -27089 | F8: =ROUND(D8*$F$7,0) -> 266980 | G8: =ROUND(D8*$G$7,0) -> -273558 | H8: =ROUND(D8*$H$7,0) -> 4687 | I8: =ROUND(D8*$I$7,0) -> 37977 | J8: =ROUND(D8*$J$7,0) -> 19581 | K8: =ROUND(SUM(H8:J8),0) -> 62245 | M8: =ROUND(D8*$M$7,0) -> 9433 | N8: =ROUND(D8*$N$7,0) -> 54491 | O8: =ROUND(D8*$O$7,0) -> 68210 | P8: =ROUND(SUM(M8:O8),0) -> 132134 | Q8: =ROUND(D8*$Q$7,0) -> 29255
A9: 02201 | B9: ADAMS COUNTY | C9: 40281.03 | D9: =+C9/$C$108 -> 0.003511499517 | E9: =ROUND(D9*$E$7,0) -> -29590 | F9: =ROUND(D9*$F$7,0) -> 291627 | G9: =ROUND(D9*$G$7,0) -> -298812 | H9: =ROUND(D9*$H$7,0) -> 5120 | I9: =ROUND(D9*$I$7,0) -> 41482 | J9: =ROUND(D9*$J$7,0) -> 21389 | K9: =ROUND(SUM(H9:J9),0) -> 67991 | M9: =ROUND(D9*$M$7,0) -> 10304 | N9: =ROUND(D9*$N$7,0) -> 59522 | O9: =ROUND(D9*$O$7,0) -> 74507 | P9: =ROUND(SUM(M9:O9),0) -> 144333 | Q9: =ROUND(D9*$Q$7,0) -> 31955
A10: 03201 | B10: ALLAMAKEE COUNTY | C10: 62037.76 | D10: =+C10/$C$108 -> 0.005408142847 | E10: =ROUND(D10*$E$7,0) -> -45572 | F10: =ROUND(D10*$F$7,0) -> 449142 | G10: =ROUND(D10*$G$7,0) -> -460208 | H10: =ROUND(D10*$H$7,0) -> 7885 | I10: =ROUND(D10*$I$7,0) -> 63888 | J10: =ROUND(D10*$J$7,0) -> 32941 | K10: =ROUND(SUM(H10:J10),0) -> 104714 | M10: =ROUND(D10*$M$7,0) -> 15869 | N10: =ROUND(D10*$N$7,0) -> 91671 | O10: =ROUND(D10*$O$7,0) -> 114749 | P10: =ROUND(SUM(M10:O10),0) -> 222289 | Q10: =ROUND(D10*$Q$7,0) -> 49215
A11: 04208 | B11: APPANOOSE COUNTY SHERIFF'S DEPT | C11: 54207.87 | D11: 0.004725572045 | E11: -39820 | F11: 392455 | G11: -402124 | H11: 6890 | I11: 55825 | J11: 28784 | K11: 91499 | M11: 13866 | N11: 80101 | O11: 100267 | P11: 194234 | Q11: 43004
A12: 05201 | B12: AUDUBON COUNTY | C12: 32374.54 | D12: 0.002822251108 | E12: -23782 | F12: 234385 | G12: -240161 | H12: 4115 | I12: 33340 | J12: 17191 | K12: 54646 | M12: 8281 | N12: 47839 | O12: 59882 | P12: 116002 | Q12: 25683
A13: 06201 | B13: BENTON COUNTY | C13: 86929.89 | D13: 0.007578114729 | E13: -63857 | F13: 629356 | G13: -644863 | H13: 11049 | I13: 89523 | J13: 46159 | K13: 146731 | M13: 22236 | N13: 128454 | O13: 160791 | P13: 311481 | Q13: 68963
A14: 07201 | B14: BLACK HAWK COUNTY | C14: 520438.41 | D14: 0.04536922778 | E14: -382305 | F14: 3767875 | G14: -3860712 | H14: 66150 | I14: 535961 | J14: 276348 | K14: 878459 | M14: 133124 | N14: 769036 | O14: 962638 | P14: 1864798 | Q14: 412870
A15: 08201 | B15: BOONE COUNTY | C15: 88991.14 | D15: 0.007757804235 | E15: -65371 | F15: 644279 | G15: -660153 | H15: 11311 | I15: 91645 | J15: 47253 | K15: 150209 | M15: 22763 | N15: 131499 | O15: 164604 | P15: 318866 | Q15: 70598
A16: 09201 | B16: BREMER COUNTY | C16: 96615.73 | D16: 0.008422478006 | E16: -70972 | F16: 699479 | G16: -716714 | H16: 12280 | I16: 99497 | J16: 51302 | K16: 163079 | M16: 24714 | N16: 142766 | O16: 178707 | P16: 346187 | Q16: 76646
A17: 10201 | B17: BUCHANAN COUNTY | C17: 74726.9 | D17: 0.006514318855 | E17: -54893 | F17: 541009 | G17: -554338 | H17: 9498 | I17: 76956 | J17: 39679 | K17: 126133 | M17: 19115 | N17: 110422 | O17: 138220 | P17: 267757 | Q17: 59282
A18: 11201 | B18: BUENA VISTA COUNTY | C18: 92696.69 | D18: 0.008080835623 | E18: -68093 | F18: 671106 | G18: -687642 | H18: 11782 | I18: 95462 | J18: 49221 | K18: 156465 | M18: 23711 | N18: 136975 | O18: 171458 | P18: 332144 | Q18: 73537
A19: 12201 | B19: BUTLER COUNTY | C19: 71014.64 | D19: 0.006190702523 | E19: -52166 | F19: 514132 | G19: -526800 | H19: 9026 | I19: 73133 | J19: 37708 | K19: 119867 | M19: 18165 | N19: 104936 | O19: 131353 | P19: 254454 | Q19: 56337
A20: 13201 | B20: CALHOUN COUNTY | C20: 44989.44 | D20: 0.003921955244 | E20: -33048 | F20: 325715 | G20: -333740 | H20: 5718 | I20: 46331 | J20: 23889 | K20: 75938 | M20: 11508 | N20: 66480 | O20: 83215 | P20: 161203 | Q20: 35691
A21: 14201 | B21: CARROLL COUNTY | C21: 57267.9 | D21: 0.004992330216 | E21: -42068 | F21: 414609 | G21: -424824 | H21: 7279 | I21: 58976 | J21: 30409 | K21: 96664 | M21: 14649 | N21: 84623 | O21: 105927 | P21: 205199 | Q21: 45431
A22: 15201 | B22: CASS COUNTY | C22: 57096.36 | D22: 0.004977376213 | E22: -41942 | F22: 413367 | G22: -423552 | H22: 7257 | I22: 58799 | J22: 30318 | K22: 96374 | M22: 14605 | N22: 84370 | O22: 105609 | P22: 204584 | Q22: 45295
A23: 16201 | B23: CEDAR COUNTY | C23: 92400.68 | D23: 0.008055030946 | E23: -67876 | F23: 668963 | G23: -685446 | H23: 11744 | I23: 95157 | J23: 49064 | K23: 155965 | M23: 23635 | N23: 136538 | O23: 170911 | P23: 331084 | Q23: 73303
A24: 17201 | B24: CERRO GORDO COUNTY | C24: 134385.3 | D24: 0.01171504095 | E24: -98717 | F24: 972924 | G24: -996896 | H24: 17081 | I24: 138394 | J24: 71357 | K24: 226832 | M24: 34375 | N24: 198577 | O24: 248568 | P24: 481520 | Q24: 106610
A25: 18201 | B25: CHEROKEE COUNTY | C25: 44092.39 | D25: 0.003843754894 | E25: -32390 | F25: 319220 | G25: -327086 | H25: 5604 | I25: 45408 | J25: 23413 | K25: 74425 | M25: 11278 | N25: 65154 | O25: 81556 | P25: 157988 | Q25: 34979
A26: 19201 | B26: CHICKASAW COUNTY | C26: 60641.25 | D26: 0.005286402063 | E26: -44546 | F26: 439031 | G26: -449848 | H26: 7708 | I26: 62450 | J26: 32200 | K26: 102358 | M26: 15512 | N26: 89608 | O26: 112166 | P26: 217286 | Q26: 48107
A27: 20201 | B27: CLARKE COUNTY | C27: 40278.06 | D27: 0.003511240607 | E27: -29588 | F27: 291605 | G27: -298790 | H27: 5119 | I27: 41479 | J27: 21387 | K27: 67985 | M27: 10303 | N27: 59518 | O27: 74501 | P27: 144322 | Q27: 31953
A28: 21201 | B28: CLAY COUNTY | C28: 73613.01 | D28: 0.006417215475 | E28: -54075 | F28: 532944 | G28: -546075 | H28: 9356 | I28: 75809 | J28: 39088 | K28: 124253 | M28: 18830 | N28: 108776 | O28: 136160 | P28: 263766 | Q28: 58398
A29: 22201 | B29: CLAYTON COUNTY | C29: 81226.76 | D29: 0.007080944268 | E29: -59668 | F29: 588066 | G29: -602556 | H29: 10324 | I29: 83649 | J29: 43131 | K29: 137104 | M29: 20777 | N29: 120026 | O29: 150242 | P29: 291045 | Q29: 64438
A30: 23201 | B30: CLINTON COUNTY | C30: 170080.39 | D30: 0.01482676107 | E30: -124938 | F30: 1231350 | G30: -1261689 | H30: 21618 | I30: 175153 | J30: 90311 | K30: 287082 | M30: 43505 | N30: 251323 | O30: 314592 | P30: 609420 | Q30: 134927
A31: 24201 | B31: CRAWFORD COUNTY | C31: 61367.35 | D31: 0.005349699843 | E31: -45079 | F31: 444288 | G31: -455235 | H31: 7800 | I31: 63198 | J31: 32586 | K31: 103584 | M31: 15697 | N31: 90681 | O31: 113509 | P31: 219887 | Q31: 48683
A32: 25201 | B32: DALLAS COUNTY | C32: 192531.81 | D32: 0.01678396401 | E32: -141431 | F32: 1393894 | G32: -1428238 | H32: 24472 | I32: 198274 | J32: 102233 | K32: 324979 | M32: 49248 | N32: 284498 | O32: 356120 | P32: 689866 | Q32: 152738
A33: 26201 | B33: DAVIS COUNTY | C33: 44638.43 | D33: 0.00389135594 | E33: -32791 | F33: 323174 | G33: -331136 | H33: 5674 | I33: 45970 | J33: 23703 | K33: 75347 | M33: 11418 | N33: 65961 | O33: 82566 | P33: 159945 | Q33: 35412
A34: 27201 | B34: DECATUR COUNTY | C34: 32717.49 | D34: 0.002852147781 | E34: -24034 | F34: 236868 | G34: -242705 | H34: 4159 | I34: 33693 | J34: 17373 | K34: 55225 | M34: 8369 | N34: 48346 | O34: 60516 | P34: 117231 | Q34: 25955
A35: 28201 | B35: DELAWARE COUNTY | C35: 99694.23 | D35: 0.008690846299 | E35: -73234 | F35: 721767 | G35: -739551 | H35: 12672 | I35: 102668 | J35: 52937 | K35: 168277 | M35: 25501 | N35: 147315 | O35: 184401 | P35: 357217 | Q35: 79089
A36: 29201 | B36: DES MOINES COUNTY | C36: 129191.08 | D36: 0.01126223473 | E36: -94902 | F36: 935319 | G36: -958364 | H36: 16421 | I36: 133044 | J36: 68599 | K36: 218064 | M36: 33046 | N36: 190902 | O36: 238961 | P36: 462909 | Q36: 102489
A37: 30201 | B37: DICKINSON COUNTY | C37: 64879.71 | D37: 0.00565588989 | E37: -47660 | F37: 469717 | G37: -481290 | H37: 8246 | I37: 66815 | J37: 34451 | K37: 109512 | M37: 16596 | N37: 95871 | O37: 120006 | P37: 232473 | Q37: 51470
A38: 31201 | B38: DUBUQUE COUNTY | C38: 567114.26 | D38: 0.04943819585 | E38: =ROUND(D38*$E$7,0)+1 -> -416592 | F38: =ROUND(D38*$F$7,0)+1 -> 4105800 | G38: -4206962 | H38: 72082 | I38: 584029 | J38: =ROUND(D38*$J$7,0)-1 -> 301132 | K38: 957243 | M38: 145063 | N38: =ROUND(D38*$N$7,0)-1 -> 838006 | O38: 1048973 | P38: 2032042 | Q38: 449899
A39: 32201 | B39: EMMET COUNTY | C39: 50871.53 | D39: 0.004434726545 | E39: -37369 | F39: 368300 | G39: -377375 | H39: 6466 | I39: 52389 | J39: 27012 | K39: 85867 | M39: 13013 | N39: 75171 | O39: 94095 | P39: 182279 | Q39: 40357
A40: 33201 | B40: FAYETTE COUNTY | C40: 80610.11 | D40: 0.007027187793 | E40: -59215 | F40: 583602 | G40: -597981 | H40: 10246 | I40: 83014 | J40: 42803 | K40: 136063 | M40: 20619 | N40: 119115 | O40: 149102 | P40: 288836 | Q40: 63949
A41: 34201 | B41: FLOYD COUNTY | C41: 76131.7 | D41: 0.006636782321 | E41: -55925 | F41: 551179 | G41: -564760 | H41: 9677 | I41: 78402 | J41: 40425 | K41: 128504 | M41: 19474 | N41: 112497 | O41: 140818 | P41: 272789 | Q41: 60396
A42: 35201 | B42: FRANKLIN COUNTY | C42: 37205.98 | D42: 0.003243431978 | E42: -27331 | F42: 269364 | G42: -276001 | H42: 4729 | I42: 38316 | J42: 19756 | K42: 62801 | M42: 9517 | N42: 54978 | O42: 68819 | P42: 133314 | Q42: 29516
A43: 36201 | B43: FREMONT COUNTY | C43: 53478.79 | D43: 0.004662014483 | E43: -39285 | F43: 387176 | G43: -396716 | H43: 6797 | I43: 55074 | J43: 28397 | K43: 90268 | M43: 13679 | N43: 79024 | O43: 98918 | P43: 191621 | Q43: 42425
A44: 37201 | B44: GREENE COUNTY | C44: 43174.1 | D44: 0.003763702946 | E44: -31715 | F44: 312572 | G44: -320274 | H44: 5488 | I44: 44462 | J44: 22925 | K44: 72875 | M44: 11044 | N44: 63797 | O44: 79858 | P44: 154699 | Q44: 34251
A45: 38201 | B45: GRUNDY COUNTY | C45: 74128.66 | D45: 0.006462167273 | E45: -54454 | F45: 536677 | G45: -549901 | H45: 9422 | I45: 76340 | J45: 39362 | K45: 125124 | M45: 18962 | N45: 109538 | O45: 137113 | P45: 265613 | Q45: 58807
A46: 39201 | B46: GUTHRIE COUNTY | C46: 56079.87 | D46: 0.004888763679 | E46: -41195 | F46: 406008 | G46: -416011 | H46: 7128 | I46: 57753 | J46: 29778 | K46: 94659 | M46: 14345 | N46: 82868 | O46: 103729 | P46: 200942 | Q46: 44489
A47: 40201 | B47: HAMILTON COUNTY | C47: 63565 | D47: 0.005541280022 | E47: -46694 | F47: 460198 | G47: -471537 | H47: 8079 | I47: 65461 | J47: 33752 | K47: 107292 | M47: 16259 | N47: 93928 | O47: 117574 | P47: 227761 | Q47: 50427
A48: 41201 | B48: HANCOCK COUNTY | C48: 56502.13 | D48: 0.004925574202 | E48: -41506 | F48: 409065 | G48: -419144 | H48: 7182 | I48: 58187 | J48: 30002 | K48: 95371 | M48: 14453 | N48: 83491 | O48: 104510 | P48: 202454 | Q48: 44824
A49: 42201 | B49: HARDIN COUNTY | C49: 60672.58 | D49: 0.005289133256 | E49: -44569 | F49: 439258 | G49: -450081 | H49: 7712 | I49: 62482 | J49: 32217 | K49: 102411 | M49: 15520 | N49: 89654 | O49: 112224 | P49: 217398 | Q49: 48132
A50: 43201 | B50: HARRISON COUNTY | C50: 62479.55 | D50: 0.005446655898 | E50: -45896 | F50: 452340 | G50: -463485 | H50: 7941 | I50: 64343 | J50: 33176 | K50: 105460 | M50: 15982 | N50: 92324 | O50: 115566 | P50: 223872 | Q50: 49566
A51: 44201 | B51: HENRY COUNTY | C51: 71186.54 | D51: 0.006205687909 | E51: -52292 | F51: 515377 | G51: -528075 | H51: 9048 | I51: 73310 | J51: 37799 | K51: 120157 | M51: 18209 | N51: 105190 | O51: 131671 | P51: 255070 | Q51: 56473
A52: 45201 | B52: HOWARD COUNTY | C52: 56215.3 | D52: 0.004900569792 | E52: -41295 | F52: 406988 | G52: -417016 | H52: 7145 | I52: 57892 | J52: 29850 | K52: 94887 | M52: 14379 | N52: 83068 | O52: 103980 | P52: 201427 | Q52: 44596
A53: 46201 | B53: HUMBOLDT COUNTY | C53: 58694.13 | D53: 0.005116661841 | E53: -43116 | F53: 424934 | G53: -435404 | H53: 7460 | I53: 60445 | J53: 31166 | K53: 99071 | M53: 15013 | N53: 86731 | O53: 108565 | P53: 210309 | Q53: 46563
A54: 47201 | B54: IDA COUNTY | C54: 49782.83 | D54: 0.004339819103 | E54: -36570 | F54: 360418 | G54: -369299 | H54: 6328 | I54: 51268 | J54: 26434 | K54: 84030 | M54: 12734 | N54: 73563 | O54: 92082 | P54: 178379 | Q54: 39493
A55: 48201 | B55: IOWA COUNTY | C55: 78622.99 | D55: 0.006853960571 | E55: -57755 | F55: 569215 | G55: -583240 | H55: 9993 | I55: 80968 | J55: 41748 | K55: 132709 | M55: 20111 | N55: 116179 | O55: 145426 | P55: 281716 | Q55: 62373
A56: 49201 | B56: JACKSON COUNTY | C56: 69455.42 | D56: 0.006054777491 | E56: -51021 | F56: 502844 | G56: -515234 | H56: 8828 | I56: 71527 | J56: 36880 | K56: 117235 | M56: 17766 | N56: 102632 | O56: 128469 | P56: 248867 | Q56: 55100
A57: 50201 | B57: JASPER COUNTY | C57: 120360.1 | D57: 0.01049239389 | E57: -88414 | F57: 871384 | G57: -892854 | H57: 15298 | I57: 123950 | J57: 63910 | K57: 203158 | M57: 30787 | N57: 177852 | O57: 222626 | P57: 431265 | Q57: 95483
A58: 51201 | B58: JEFFERSON COUNTY | C58: 70892.3 | D58: 0.006180037531 | E58: -52076 | F58: 513247 | G58: -525893 | H58: 9011 | I58: 73007 | J58: 37643 | K58: 119661 | M58: 18134 | N58: 104755 | O58: 131127 | P58: 254016 | Q58: 56240
A59: 52201 | B59: JOHNSON COUNTY | C59: 557489.04 | D59: 0.04859911712 | E59: =ROUND(D59*$E$7,0)+1 -> -409521 | F59: 4036114 | G59: -4135561 | H59: 70859 | I59: 574117 | J59: 296022 | K59: 940998 | M59: 142601 | N59: 823784 | O59: 1031169 | P59: 1997554 | Q59: 442263
A60: 53201 | B60: JONES COUNTY | C60: 71460.91 | D60: 0.006229606118 | E60: -52494 | F60: 517363 | G60: -530111 | H60: 9083 | I60: 73592 | J60: 37945 | K60: 120620 | M60: 18279 | N60: 105596 | O60: 132179 | P60: 256054 | Q60: 56691
A61: 54201 | B61: KEOKUK COUNTY | C61: 34651.46 | D61: 0.003020741651 | E61: -25454 | F61: 250870 | G61: -257051 | H61: 4404 | I61: 35685 | J61: 18400 | K61: 58489 | M61: 8864 | N61: 51203 | O61: 64094 | P61: 124161 | Q61: 27489
A62: 55201 | B62: KOSSUTH COUNTY | C62: 62048.76 | D62: 0.005409101772 | E62: -45580 | F62: 449221 | G62: -460290 | H62: 7887 | I62: 63899 | J62: 32947 | K62: 104733 | M62: 15872 | N62: 91688 | O62: 114770 | P62: 222330 | Q62: 49224
A63: 56201 | B63: LEE COUNTY | C63: 101231.11 | D63: 0.00882482384 | E63: -74363 | F63: 732894 | G63: -750952 | H63: 12867 | I63: 104250 | J63: 53753 | K63: 170870 | M63: 25894 | N63: 149586 | O63: 187244 | P63: 362724 | Q63: 80308
A64: 57210 | B64: LINN COUNTY SHERIFF'S DEPARTMENT | C64: 1105817.78 | D64: 0.09639968492 | E64: =ROUND(D64*$E$7,0)+1 -> -812314 | F64: =ROUND(D64*$F$7,0)+1 -> 8005911 | G64: -8203169 | H64: 140554 | I64: 1138801 | J64: =ROUND(D64*$J$7,0)-1 -> 587178 | K64: 1866533 | M64: =ROUND(D64*$M$7,0)-1 -> 282858 | N64: =ROUND(D64*$N$7,0)-1 -> 1634032 | O64: 2045395 | P64: 3962285 | Q64: 877259
A65: 58201 | B65: LOUISA COUNTY | C65: 66518.73 | D65: 0.005798771488 | E65: -48864 | F65: 481583 | G65: -493449 | H65: 8455 | I65: 68503 | J65: 35321 | K65: 112279 | M65: 17015 | N65: 98293 | O65: 123038 | P65: 238346 | Q65: 52770
A66: 59201 | B66: LUCAS COUNTY | C66: 26442.8 | D66: 0.002305151567 | E66: -19424 | F66: 191441 | G66: -196158 | H66: 3361 | I66: 27231 | J66: 14041 | K66: 44633 | M66: 6764 | N66: 39074 | O66: 48910 | P66: 94748 | Q66: 20977
A67: 60201 | B67: LYON COUNTY | C67: 84544.91 | D67: 0.007370204054 | E67: -62105 | F67: 612089 | G67: -627170 | H67: 10746 | I67: 87067 | J67: 44893 | K67: 142706 | M67: 21626 | N67: 124929 | O67: 156380 | P67: 302935 | Q67: 67071
A68: 61201 | B68: MADISON COUNTY | C68: 43906.3 | D68: 0.003827532494 | E68: -32253 | F68: 317873 | G68: -325705 | H68: 5581 | I68: 45216 | J68: 23314 | K68: 74111 | M68: 11231 | N68: 64879 | O68: 81212 | P68: 157322 | Q68: 34831
A69: 62201 | B69: MAHASKA COUNTY | C69: 58923.85 | D69: 0.005136687687 | E69: -43284 | F69: 426597 | G69: -437108 | H69: 7489 | I69: 60681 | J69: 31288 | K69: 99458 | M69: 15072 | N69: 87070 | O69: 108990 | P69: 211132 | Q69: 46745
A70: 63201 | B70: MARION COUNTY | C70: 104737.08 | D70: 0.009130456838 | E70: -76938 | F70: 758276 | G70: -776960 | H70: 13312 | I70: 107861 | J70: 55614 | K70: 176787 | M70: 26791 | N70: 154767 | O70: 193729 | P70: 375287 | Q70: 83089
A71: 64201 | B71: MARSHALL COUNTY | C71: 137328.9 | D71: 0.01197164933 | E71: -100879 | F71: 994235 | G71: -1018732 | H71: 17455 | I71: 141425 | J71: 72920 | K71: 231800 | M71: 35128 | N71: 202927 | O71: 254013 | P71: 492068 | Q71: 108945
A72: 65201 | B72: MILLS COUNTY | C72: 73582.73 | D72: 0.006414575815 | E72: -54053 | F72: 532725 | G72: -545851 | H72: 9353 | I72: 75777 | J72: 39072 | K72: 124202 | M72: 18822 | N72: 108731 | O72: 136104 | P72: 263657 | Q72: 58374
A73: 66207 | B73: MITCHELL COUNTY SHERIFF'S DEPT | C73: 50609.18 | D73: 0.004411856179 | E73: -37177 | F73: 366401 | G73: -375429 | H73: 6433 | I73: 52119 | J73: 26873 | K73: 85425 | M73: 12945 | N73: 74784 | O73: 93610 | P73: 181339 | Q73: 40149
A74: 67201 | B74: MONONA COUNTY | C74: 47141.63 | D74: =+C74/$C$108 -> 0.004109572446 | E74: =ROUND(D74*$E$7,0) -> -34629 | F74: =ROUND(D74*$F$7,0) -> 341296 | G74: =ROUND(D74*$G$7,0) -> -349706 | H74: =ROUND(D74*$H$7,0) -> 5992 | I74: =ROUND(D74*$I$7,0) -> 48548 | J74: =ROUND(D74*$J$7,0) -> 25032 | K74: =ROUND(SUM(H74:J74),0) -> 79572 | M74: =ROUND(D74*$M$7,0) -> 12058 | N74: =ROUND(D74*$N$7,0) -> 69660 | O74: =ROUND(D74*$O$7,0) -> 87196 | P74: =ROUND(SUM(M74:O74),0) -> 168914 | Q74: =ROUND(D74*$Q$7,0) -> 37398
A75: 68201 | B75: MONROE COUNTY | C75: 27238.81 | D75: 0.002374543753 | E75: -20009 | F75: 197204 | G75: -202063 | H75: 3462 | I75: 28051 | J75: 14464 | K75: 45977 | M75: 6967 | N75: 40250 | O75: 50383 | P75: 97600 | Q75: 21609
A76: 69201 | B76: MONTGOMERY COUNTY | C76: 52608.04 | D76: 0.004586106836 | E76: -38645 | F76: 380872 | G76: -390257 | H76: 6687 | I76: 54177 | J76: 27934 | K76: 88798 | M76: 13457 | N76: 77737 | O76: 97307 | P76: 188501 | Q76: 41735
A77: 70201 | B77: MUSCATINE COUNTY | C77: 153572.61 | D77: 0.01338769505 | E77: -112812 | F77: 1111836 | G77: -1139231 | H77: 19520 | I77: 158153 | J77: 81546 | K77: 259219 | M77: 39283 | N77: 226930 | O77: 284058 | P77: 550271 | Q77: 121831
A78: 71201 | B78: O'BRIEN COUNTY | C78: 64666.8 | D78: 0.005637329456 | E78: -47503 | F78: 468175 | G78: -479711 | H78: 8219 | I78: 66596 | J78: 34337 | K78: 109152 | M78: 16541 | N78: 95556 | O78: 119612 | P78: 231709 | Q78: 51301
A79: 72201 | B79: OSCEOLA COUNTY | C79: 55847.47 | D79: 0.004868504205 | E79: -41025 | F79: 404325 | G79: -414287 | H79: 7098 | I79: 57513 | J79: 29655 | K79: 94266 | M79: 14285 | N79: 82524 | O79: 103299 | P79: 200108 | Q79: 44305
A80: 73201 | B80: PAGE COUNTY | C80: 53282.66 | D80: 0.004644916847 | E80: -39141 | F80: 385756 | G80: -395261 | H80: 6772 | I80: 54872 | J80: 28293 | K80: 89937 | M80: 13629 | N80: 78734 | O80: 98555 | P80: 190918 | Q80: 42270
A81: 74201 | B81: PALO ALTO COUNTY | C81: 49395.37 | D81: 0.004306042271 | E81: -36285 | F81: 357613 | G81: -366424 | H81: 6278 | I81: 50869 | J81: 26228 | K81: 83375 | M81: 12635 | N81: 72990 | O81: 91365 | P81: 176990 | Q81: 39186
A82: 75201 | B82: PLYMOUTH COUNTY | C82: 87507.51 | D82: 0.007628468763 | E82: -64282 | F82: 633538 | G82: -649148 | H82: 11123 | I82: 90118 | J82: 46466 | K82: 147707 | M82: 22384 | N82: 129307 | O82: 161860 | P82: 313551 | Q82: 69421
A83: 76201 | B83: POCAHONTAS COUNTY | C83: 45509.05 | D83: 0.003967252255 | E83: -33430 | F83: 329477 | G83: -337595 | H83: 5784 | I83: 46866 | J83: 24165 | K83: 76815 | M83: 11641 | N83: 67247 | O83: 84177 | P83: 163065 | Q83: 36103
A84: 77209 | B84: POLK COUNTY ADMINISTRATION OFFICE BLDG | C84: 1155393.51 | D84: 0.1007214501 | E84: =ROUND(D84*$E$7,0)+1 -> -848732 | F84: =ROUND(D84*$F$7,0)+1 -> 8364830 | G84: -8570931 | H84: =ROUND(D84*$H$7,0)+1 -> 146856 | I84: =ROUND(D84*$I$7,0)+1 -> 1189856 | J84: =ROUND(D84*$J$7,0)-1 -> 613503 | K84: 1950215 | M84: =ROUND(D84*$M$7,0)-1 -> 295539 | N84: =ROUND(D84*$N$7,0)-1 -> 1707289 | O84: =ROUND(D84*$O$7,0)-1 -> 2137093 | P84: 4139921 | Q84: 916588
A85: 78201 | B85: POTTAWATTAMIE COUNTY | C85: 380582.09 | D85: 0.03317725056 | E85: -279569 | F85: 2755342 | G85: -2823231 | H85: 48373 | I85: 391934 | J85: 202086 | K85: 642393 | M85: 97350 | N85: 562374 | O85: 703950 | P85: 1363674 | Q85: 301921
A86: 79201 | B86: POWESHIEK COUNTY | C86: 81903.17 | D86: 0.007139910322 | E86: -60165 | F86: 592963 | G86: -607573 | H86: 10410 | I86: 84346 | J86: 43490 | K86: 138246 | M86: 20950 | N86: 121026 | O86: 151494 | P86: 293470 | Q86: 64975
A87: 80201 | B87: RINGGOLD COUNTY | C87: 31553.5 | D87: 0.002750676932 | E87: -23179 | F87: 228441 | G87: -234070 | H87: 4011 | I87: 32495 | J87: 16755 | K87: 53261 | M87: 8071 | N87: 46626 | O87: 58363 | P87: 113060 | Q87: 25032
A88: 81201 | B88: SAC COUNTY | C88: 60748.25 | D88: 0.00529572979 | E88: -44625 | F88: 439806 | G88: -450642 | H88: 7721 | I88: 62560 | J88: 32257 | K88: 102538 | M88: 15539 | N88: 89766 | O88: 112364 | P88: 217669 | Q88: 48192
A89: 82201 | B89: SCOTT COUNTY | C89: 327193.68 | D89: 0.02852311496 | E89: -240351 | F89: 2368820 | G89: -2427186 | H89: 41588 | I89: 336953 | J89: 173737 | K89: 552278 | M89: 83694 | N89: 483484 | O89: 605199 | P89: 1172377 | Q89: 259567
A90: 83201 | B90: SHELBY COUNTY | C90: 53355.36 | D90: 0.00465125447 | E90: -39194 | F90: 386283 | G90: -395800 | H90: 6782 | I90: 54947 | J90: 28331 | K90: 90060 | M90: 13648 | N90: 78842 | O90: 98690 | P90: 191180 | Q90: 42327
A91: 84201 | B91: SIOUX COUNTY | C91: 102211.79 | D91: 0.008910314637 | E91: -75083 | F91: 739994 | G91: -758227 | H91: 12992 | I91: 105260 | J91: 54274 | K91: 172526 | M91: 26145 | N91: 151035 | O91: 189058 | P91: 366238 | Q91: 81086
A92: 85201 | B92: STORY COUNTY | C92: 231851.78 | D92: 0.0202116831 | E92: -170314 | F92: 1678563 | G92: -1719921 | H92: 29469 | I92: 238767 | J92: 123111 | K92: 391347 | M92: 59306 | N92: 342600 | O92: 428849 | P92: 830755 | Q92: 183931
A93: 86201 | B93: TAMA COUNTY | C93: 79366.83 | D93: 0.006918804837 | E93: -58302 | F93: 574601 | G93: -588758 | H93: 10088 | I93: 81734 | J93: 42143 | K93: 133965 | M93: 20301 | N93: 117278 | O93: 146802 | P93: 284381 | Q93: 62963
A94: 87201 | B94: TAYLOR COUNTY | C94: 44777.83 | D94: 0.003903508138 | E94: -32893 | F94: 324183 | G94: -332171 | H94: 5691 | I94: 46113 | J94: 23777 | K94: 75581 | M94: 11454 | N94: 66167 | O94: 82824 | P94: 160445 | Q94: 35523
A95: 88201 | B95: UNION COUNTY | C95: 35838.88 | D95: 0.00312425501 | E95: -26327 | F95: 259467 | G95: -265860 | H95: 4555 | I95: 36908 | J95: 19030 | K95: 60493 | M95: 9167 | N95: 52958 | O95: 66290 | P95: 128415 | Q95: 28431
A96: 89201 | B96: VAN BUREN COUNTY | C96: 34469.3 | D96: 0.003004861849 | E96: -25321 | F96: 249551 | G96: -255700 | H96: 4381 | I96: 35497 | J96: 18303 | K96: 58181 | M96: 8817 | N96: 50934 | O96: 63757 | P96: 123508 | Q96: 27345
A97: 90201 | B97: WAPELLO COUNTY | C97: 69615.6 | D97: 0.006068741186 | E97: -51138 | F97: 504004 | G97: -516422 | H97: 8848 | I97: 71692 | J97: 36965 | K97: 117505 | M97: 17807 | N97: 102869 | O97: 128766 | P97: 249442 | Q97: 55227
A98: 91201 | B98: WARREN COUNTY | C98: 149536.68 | D98: 0.01303586278 | E98: -109847 | F98: 1082617 | G98: -1109292 | H98: 19007 | I98: 153997 | J98: 79403 | K98: 252407 | M98: 38250 | N98: 220966 | O98: 276593 | P98: 535809 | Q98: 118629
A99: 92201 | B99: WASHINGTON COUNTY | C99: 120116.52 | D99: 0.0104711598 | E99: -88236 | F99: 869621 | G99: -891047 | H99: 15267 | I99: 123699 | J99: 63781 | K99: 202747 | M99: 30725 | N99: 177492 | O99: 222176 | P99: 430393 | Q99: 95290
A100: 93201 | B100: WAYNE COUNTY | C100: 40822 | D100: 0.003558658586 | E100: -29987 | F100: 295543 | G100: -302825 | H100: 5189 | I100: 42040 | J100: 21676 | K100: 68905 | M100: 10442 | N100: 60321 | O100: 75507 | P100: 146270 | Q100: 32385
A101: 94201 | B101: WEBSTER COUNTY | C101: 107892.36 | D101: 0.009405518429 | E101: -79256 | F101: 781120 | G101: -800366 | H101: 13714 | I101: 111110 | J101: 57290 | K101: 182114 | M101: 27598 | N101: 159429 | O101: 199565 | P101: 386592 | Q101: 85592
A102: 95201 | B102: WINNEBAGO COUNTY | C102: 46016.64 | D102: 0.004011501422 | E102: -33803 | F102: 333152 | G102: -341360 | H102: 5849 | I102: 47389 | J102: 24434 | K102: 77672 | M102: 11771 | N102: 67997 | O102: 85115 | P102: 164883 | Q102: 36506
A103: 96201 | B103: WINNESHIEK COUNTY | C103: 78681.05 | D103: 0.006859021953 | E103: -57798 | F103: 569636 | G103: -583671 | H103: 10001 | I103: 81028 | J103: 41779 | K103: 132808 | M103: 20126 | N103: 116265 | O103: 145534 | P103: 281925 | Q103: 62419
A104: 97201 | B104: WOODBURY COUNTY | C104: 293116.12 | D104: 0.02555240305 | E104: -215318 | F104: 2122105 | G104: -2174392 | H104: 37256 | I104: 301859 | J104: 155642 | K104: 494757 | M104: 74977 | N104: 433129 | O104: 542167 | P104: 1050273 | Q104: 232533
A105: 98201 | B105: WORTH COUNTY | C105: 72889.13 | D105: 0.006354111223 | E105: -53543 | F105: 527703 | G105: -540706 | H105: 9264 | I105: 75063 | J105: 38703 | K105: 123030 | M105: 18644 | N105: 107706 | O105: 134821 | P105: 261171 | Q105: 57824
A106: 99201 | B106: WRIGHT COUNTY | C106: 61673.97 | D106: 0.005376429447 | E106: -45305 | F106: 446508 | G106: -457509 | H106: 7839 | I106: 63513 | J106: 32748 | K106: 104100 | M106: 15776 | N106: 91134 | O106: 114076 | P106: 220986 | Q106: 48927
J107: =ROUND(D107*$J$7,0) -> 0
B108: Total for all entities | C108: =SUM(C8:C106) -> 11471176.29 | D108: 1 | E108: -8426532 | F108: 83049130 | G108: -85095388 | H108: 1458030 | I108: 11813322 | J108: =SUM(J8:J107) -> 6091091 | K108: =SUM(K8:K106) -> 19362443 | M108: =SUM(M8:M106) -> 2934235 | N108: =SUM(N8:N106) -> 16950605 | O108: =SUM(O8:O106) -> 21217859 | P108: =SUM(P8:P106) -> 41102699 | Q108: =SUM(Q8:Q106) -> 9100229
C109: =+C7-C108 -> -0.2899999991 | D109: 0 | E109: 0 | F109: 0 | G109: 0 | H109: 0 | I109: 0 | J109: 0 | K109: 0 | L109: 0 | M109: 0 | N109: 0 | O109: 0 | P109: 0 | Q109: 0
A111: * - Employer specific amounts excluded from this Schedule are the changes in proportion and differences between employer contributions and the proportionate share of contributions, as well as the related amortization as defined in paragraphs 54-55 of GASB Statement No. 68, Accounting and Financial Reporting for Pensions.
A113: ** - The proportions in this spreadsheet are for this membership group only, not the proportions to use to compute the change in entity proportion for the Pension note which is included in the Notes to Financial Statements. The Employer Calculation of Total Net Pension Liability/(Asset) and Proportion workbook, which is available on the IPERS website, details how to calculate an employer's proportion and net pension liability/(asset) to comply with GASB Statement No. 68.
